Cogmind - Beta 13 @@@ ROGUE MODE // 2024.04.08 @ 21:09:03 Player: Tenderz Result: Destroyed by H-55 Commando with Gauss Rifle Performance ------------- Evolutions (2) 1000 Regions Visited (5) 1000 Robots Destroyed (36) 180 Value Destroyed (943) 943 Prototype IDs (0) 0 Alien Tech Used (0) 0 Bonus (200) 200 TOTAL SCORE: 3323 Bonus ------- Entered Garrisons 200 Cogmind --------- Core Integrity 0/550 Matter 262/300 Energy 23/100 System Corruption 8% Temperature Cool (69) Movement Core (350) Ox6 Location -8/Garrison Parts ------- > --- POWER (1) -------- (None) > --- PROPULSION (4) --- (None) > --- UTILITY (4) ------ Large Storage Unit Advanced Weight Redist. System > --- WEAPON (2) ------- (None) > --- INVENTORY (15) --- Medium Storage Unit Improved Terrain Scanner Relay Coupler [Hunter] (12) Light Assault Rifle Light Assault Rifle Katana Scythe Peak State ------------ > --- POWER ------------ Subdweller Power Source > --- PROPULSION ------- Carbon-fiber Leg Carbon-fiber Leg Carbon-fiber Leg Myomer Leg > --- UTILITY ---------- Improved Heat Sink Large Storage Unit Advanced Weight Redist. System Subdweller Optics > --- WEAPON ----------- Beamcaster Beamcaster > --- INVENTORY -------- Subdweller Power Source Armored Treads Aluminum Leg Aluminum Leg Aluminum Leg Carbon-fiber Leg Improved Heat Sink Medium Storage Unit Advanced Weight Redist. System Subdweller Beam Cannon Subdweller Beam Cannon High-powered Shotgun Grenade Launcher [Rating: 39] Favorites ----------- Power Ion Engine Engine Ion Engine Propulsion Aluminum Leg Treads Light Treads Leg Aluminum Leg Wheel Wheel Utility Large Storage Unit Device Seismic Detector Storage Large Storage Unit Processor Targeting Computer Protection Medium Armor Plating Weapon Assault Rifle Energy Gun Beamcaster Energy Cannon Beam Cannon Ballistic Gun Assault Rifle Ballistic Cannon Light Cannon Launcher Grenade Launcher Special Weapon Mining Laser Slashing Weapon Scythe Build | -11 -10 -10 -10 -8 -8 ------- Run | Yrd Mat Min Sub Mat Gar Slots Evolved 4 | . . . . 4 . Power . | . . . . . . Propulsion 2 | . . . . 2 . Utility 2 | . . . . 2 . Weapon . | . . . . . . Parts Attached 75 | 9 10 3 8 25 20 Power 7 | 1 . . 2 1 3 Engine 7 | 1 . . 2 1 3 Core . | . . . . . . Reactor . | . . . . . . Propulsion 22 | 3 6 . 2 7 4 Treads 2 | . . . . . 2 Leg 17 | 2 4 . 2 7 2 Wheel 3 | 1 2 . . . . Hover . | . . . . . . Flight . | . . . . . . Utility 21 | 1 2 1 1 9 7 Device 12 | 1 . . 1 7 3 Storage 4 | . 2 . . 1 1 Processor 1 | . . 1 . . . Hackware . | . . . . . . Protection 4 | . . . . 1 3 Artifact . | . . . . . . Weapon 25 | 4 2 2 3 8 6 Energy Gun 7 | 2 . 1 1 2 1 Energy Cannon 5 | . 1 . 2 1 1 Ballistic Gun 6 | 1 . . . 2 3 Ballistic Cannon 2 | . 1 . . 1 . Launcher 2 | . . 1 . . 1 Special Weapon 1 | 1 . . . . . Impact Weapon . | . . . . . . Slashing Weapon 2 | . . . . 2 . Piercing Weapon . | . . . . . . Special Melee Weapon . | . . . . . . Unidentified Prototypes . | . . . . . . Corrupted Parts 1 | 1 . . . . . System Corruption 1 | 1 . . . . . Parts Lost 26 | . 1 . . 5 20 Power 3 | . . . . . 3 Propulsion 9 | . . . . 3 6 Utility 6 | . . . . 1 5 Weapon 8 | . 1 . . 1 6 Highest Loss Streak 14 | . 1 . . 3 14 To Critical Strikes 1 | . . . . . 1 Average Slot Usage (%) 95 | . 96 100 99 97 81 Engine 12 | . 14 14 14 9 7 Leg 28 | . 24 28 27 35 25 Device 11 | . 14 2 2 23 13 Storage 12 | . 13 14 14 9 9 Processor 3 | . . 11 11 . . Protection 1 | . . . . 1 7 Energy Gun 4 | . 2 . 8 6 2 Energy Cannon 6 | . . 14 19 2 . Ballistic Gun 8 | . 14 11 . 7 7 Ballistic Cannon 3 | . 10 . . . . Naked Turns . | . . . . . . Heaviest Build 91 | 10 91 31 43 51 48 Greatest Support 79 | 20 20 20 40 79 63 Greatest Overweight (x) 9 | 1 9 1 3 . 6 Average Overweight (x) . | . 3 1 . . . Largest Inventory Capacity 25 | 5 25 15 15 15 15 Average Capacity 16 | 5 22 15 15 15 15 Most Carried 22 | 5 22 15 15 15 14 Average Carried 12 | 4 12 15 14 13 12 Final Capacity 15 | 5 15 15 15 15 15 Final Carried 15 | 5 15 15 12 14 7 Class Distribution -------------------- 65% | Mutant 34% | Scavenger-Mutant Dominant Class ---------------- Mutant | -10/Materials Mutant | -10/Mines Mutant | -10/Subcaves Scavenger-Mutant | -8/Materials Scavenger-Mutant | -8/Garrison Resources | -11 -10 -10 -10 -8 -8 ----------- Run | Yrd Mat Min Sub Mat Gar Matter Collected 1290 | 308 203 . 216 391 172 Remotely . | . . . . . . Salvage Created 1377 | 69 290 . 159 482 377 Parts 64 | 6 17 . 5 21 15 Haulers Intercepted . | . . . . . . Recyclers Shooed 3 | . 1 . . 2 . Parts Field Recycled . | . . . . . . Retrieved Matter . | . . . . . . Parts Self-Destructed 3 | . . . 3 . . Prevented . | . . . . . . Kills | -11 -10 -10 -10 -8 -8 ------- Run | Yrd Mat Min Sub Mat Gar Combat Hostiles Destroyed 28 | 1 5 . 3 10 9 Melee 5 | . . . . 2 3 Guns 14 | 1 2 . 1 5 5 Cannons 7 | . 3 . 2 2 . AOE 1 | . . . . . 1 Classes Destroyed 13 | 2 4 . 2 5 . Worker 1 | . 1 . . . . Builder 2 | . 1 . . 1 . Tunneler 1 | 1 . . . . . Recycler 1 | . . . . 1 . Mechanic 1 | . . . . 1 . Operator 1 | . 1 . . . . Watcher 1 | . 1 . . . . Swarmer 10 | . . . . 3 7 Grunt 10 | 1 5 . . 4 . Brawler 2 | . . . . 1 1 Duelist 2 | . . . . 1 1 Sentry 2 | . . . 1 1 . Subdweller 2 | . . . 2 . . Best Kill Streak 6 | 2 2 . 2 6 4 Combat Bots Only 4 | 1 2 . 2 2 4 Max Kills in Single Turn 2 | 2 1 . 1 2 1 Gunslinging . | . . . . . . Exploded 1 | . . . . . 1 Melee 1 | . . . . 1 1 Uniques/NPCs Destroyed . | . . . . . . Combat | -11 -10 -10 -10 -8 -8 -------- Run | Yrd Mat Min Sub Mat Gar Hostile Shots Fired 344 | 8 30 . 5 85 216 Missed 93 | 1 10 . 2 29 51 Damage Taken 3231 | 76 285 18 41 801 2010 Core 687 | 33 99 . . 73 482 Absorbed by Shields 156 | . . . . 24 132 Redirected to Shielding 43 | . . . . . 43 Core Remaining (%) 66 | 86 . . 47 . . Volleys Fired 135 | 21 23 15 7 47 22 Largest 2 | 2 2 2 2 2 2 Hottest 150 | 120 60 80 140 150 105 Shots Fired 211 | 27 45 24 11 72 32 Gun 148 | 11 35 9 3 62 28 Cannon 37 | . 10 9 8 10 . Launcher 10 | . . 6 . . 4 Special 16 | 16 . . . . . Kinetic 114 | 6 32 9 . 48 19 Thermal 69 | 16 . 9 11 24 9 Explosive 10 | . . 6 . . 4 Electromagnetic 18 | 5 13 . . . . Robot Hit Streak 13 | 1 7 . 5 13 7 Robot Miss Streak 4 | 2 3 . 1 4 2 Penetration Max . | . . . . . . Secondary Targets 1 | . 1 . . . . Max Gunslinging Chain 1 | . 1 . . . . Shots Hit Robots 139 | 4 29 . 6 59 41 Core Hits 58 | 3 13 . 3 22 17 Critical Kills 1 | . . . . 1 . Critical Parts Destroyed . | . . . . . . Critical Strikes 5 | . . . . 2 3 Burn 1 | . . . . 1 . Meltdown 1 | . . . . 1 . Sever 3 | . . . . . 3 Melee Attacks 38 | . . . . 4 34 Impact . | . . . . . . Slashing 38 | . . . . 4 34 Piercing . | . . . . . . Sneak Attacks . | . . . . . . Combat Hostiles . | . . . . . . Follow-up Attacks . | . . . . . . Damage Inflicted 3180 | 75 580 . 129 1217 1179 Guns 1603 | 75 348 . 42 915 223 Cannons 406 | . 107 . 87 212 . Explosions 217 | . 125 . . . 92 Melee 949 | . . . . 85 864 Ramming 5 | . . . . 5 . Kinetic 1210 | 45 325 . . 722 118 Thermal 764 | . 125 . 129 405 105 Explosive 92 | . . . . . 92 Electromagnetic 160 | 30 130 . . . . Impact . | . . . . . . Slashing 949 | . . . . 85 864 Piercing . | . . . . . . Highest Corruption 8 | 1 1 1 1 . 8 Average Corruption 1 | 1 1 1 1 . 4 Corruption Purged . | . . . . . . Corruption Blocked . | . . . . . . Effects 26 | 3 11 4 3 . 5 Message Errors 2 | . 1 . . . 1 Matter Fused 3 | . 1 . 1 . 1 Heat Flow Errors 5 | . 1 2 . . 2 Energy Discharges 3 | 1 . 1 1 . . Parts Rejected 2 | . 1 . . . 1 Data Loss (minor) 8 | 1 6 1 . . . Data Loss (major) 2 | 1 . . 1 . . Weapon Failures 1 | . 1 . . . . Overload Shots . | . . . . . . Overflow Damage 32 | . 4 . . 28 . Projectiles 4 | . . . . 4 . Explosions 4 | . 4 . . . . Melee 24 | . . . . 24 . Knockbacks 1 | . . . . 1 . Impact . | . . . . . . Kinetic 1 | . . . . 1 . Secondary . | . . . . . . Self-Inflicted Damage 79 | . . 18 . . 61 Shots 3 | . . 1 . . 2 Rammed . | . . . . . . Targets Rammed 1 | . . . . 1 . Kicked 1 | . . . . 1 . Crushed . | . . . . . . Highest Temperature 242 | 68 218 242 36 72 210 Average Temperature 56 | 24 79 98 14 19 49 Received Heat Transfer 931 | 42 165 . 18 348 358 Siege Activations . | . . . . . . Robots Corrupted . | . . . . . . Combat Hostiles . | . . . . . . Parts Fried 2 | . 2 . . . . Impact Corruptions . | . . . . . . Robots Melted 1 | . . . . 1 . Combat Hostiles 1 | . . . . 1 . Parts Melted 7 | . . . 5 2 . Heat Transferred 1260 | . 150 . 222 703 185 Parts Sabotaged . | . . . . . . Parts Stolen . | . . . . . . Parts Stripped . | . . . . . . Power Chain Reactions 2 | . 2 . . . . Alert | -11 -10 -10 -10 -8 -8 ------- Run | Yrd Mat Min Sub Mat Gar Peak Influence 290 | 25 111 41 . 199 290 Initial 129 | . 16 . . 10 129 Average 66 | 16 53 3 . 79 196 Maximum Alert Level 1 | . . . . . 1 Low Security (%) 94 | 100 100 100 . 100 61 Level 1 5 | . . . . . 38 Level 2 . | . . . . . . Level 3 . | . . . . . . Level 4 . | . . . . . . Level 5 . | . . . . . . High Security . | . . . . . . Max Security . | . . . . . . Squads Dispatched 4 | . 1 . . 3 . Investigation . | . . . . . . Extermination . | . . . . . . Reinforcement 1 | . 1 . . . . Assault . | . . . . . . Garrison 3 | . . . . 3 . Intercept . | . . . . . . Searches Triggered . | . . . . . . Construction Impeded . | . . . . . . Haulers Reinforced . | . . . . . . Active Scanning Responses . | . . . . . . Cargo Convoy Interrupts . | . . . . . . Stealth | -11 -10 -10 -10 -8 -8 --------- Run | Yrd Mat Min Sub Mat Gar Distress Signals 1 | . 1 . . . . Communications Jammed . | . . . . . . Distress Signals . | . . . . . . Times Spotted 50 | 1 11 . 8 16 14 Peak Tracking Total 5 | 1 2 . 5 5 5 Tactical Retreats 3 | . 1 . . 2 . Traps | -11 -10 -10 -10 -8 -8 ------- Run | Yrd Mat Min Sub Mat Gar Traps Triggered . | . . . . . . Indirectly . | . . . . . . Trap Hack Attempts . | . . . . . . Triggered . | . . . . . . Disarmed . | . . . . . . Reprogrammed . | . . . . . . Reused . | . . . . . . Traps Extracted . | . . . . . . Installed . | . . . . . . Triggered . | . . . . . . Machines | -11 -10 -10 -10 -8 -8 ---------- Run | Yrd Mat Min Sub Mat Gar Machines Disabled 2 | . 1 1 . . . Max in Single Turn 1 | . 1 1 . . . Machines Repaired . | . . . . . . Machines Dismantled . | . . . . . . Machines Sabotaged . | . . . . . . Overloaded Fab Kills . | . . . . . . Hacking | -11 -10 -10 -10 -8 -8 --------- Run | Yrd Mat Min Sub Mat Gar Machines Accessed 4 | . 1 . . 3 . Terminals 3 | . 1 . . 2 . Fabricators . | . . . . . . Repair Stations . | . . . . . . Recycling Units . | . . . . . . Scanalyzers . | . . . . . . Garrison Access 1 | . . . . 1 . Total Hacks 12 | . 4 . . 8 . Successful 10 | . 4 . . 6 . Failed 1 | . . . . 1 . Catastrophic . | . . . . . . Database Lockouts 1 | . . . . 1 . Manual . | . . . . . . Terminals 10 | . 4 . . 6 . Fabricators . | . . . . . . Repair Stations . | . . . . . . Recycling Units . | . . . . . . Scanalyzers . | . . . . . . Garrison Access 2 | . . . . 2 . Terminal Hacks 8 | . 4 . . 4 . Record 6 | . 2 . . 4 . Emergency Access Points 1 | . 1 . . . . Zone Layout 1 | . 1 . . . . Fabricator Hacks . | . . . . . . Repair Station Hacks . | . . . . . . Recycling Unit Hacks . | . . . . . . Scanalyzer . | . . . . . . Garrison Access Hacks 2 | . . . . 2 . Unlock Access 1 | . . . . 1 . Coupler Status 1 | . . . . 1 . Unauthorized Hacks . | . . . . . . Terminals . | . . . . . . Fabricators . | . . . . . . Repair Stations . | . . . . . . Recycling Units . | . . . . . . Scanalyzers . | . . . . . . Garrison Access . | . . . . . . Data Cores Recovered . | . . . . . . Used . | . . . . . . Hacking Detections 3 | . . . . 3 . Full Trace Events . | . . . . . . Feedback Events . | . . . . . . Feedback Blocked . | . . . . . . Robot Schematics Acquired . | . . . . . . Robots Built . | . . . . . . Authchips . | . . . . . . Time . | . . . . . . Total Robot Build Rating . | . . . . . . Part Schematics Acquired . | . . . . . . Parts Built . | . . . . . . Authchips . | . . . . . . Time . | . . . . . . Total Part Build Rating . | . . . . . . Parts Repaired . | . . . . . . Time . | . . . . . . Parts Recycled . | . . . . . . Recycled Matter . | . . . . . . Retrieved Matter . | . . . . . . Retrieved Components . | . . . . . . Parts Scanalyzed . | . . . . . . Part Schematics Acquired . | . . . . . . Parts Damaged . | . . . . . . Bothacking | -11 -10 -10 -10 -8 -8 ------------ Run | Yrd Mat Min Sub Mat Gar Used RIF Installer . | . . . . . . Robots Hacked . | . . . . . . Non-combat . | . . . . . . Combat . | . . . . . . Robot Hacks Applied . | . . . . . . Relay Couplers Released 4 | . . . . . 4 Programmers 4 | . . . . . 4 Fabnet Peak Effective % . | . . . . . . Robots Rewired . | . . . . . . Allies Hacked . | . . . . . . Hacks Repelled . | . . . . . . Allies | -11 -10 -10 -10 -8 -8 -------- Run | Yrd Mat Min Sub Mat Gar Total Allies . | . . . . . . Largest Group . | . . . . . . Highest-Rated Group . | . . . . . . Highest-Rated Ally . | . . . . . . Total Orders . | . . . . . . Ally Attacks . | . . . . . . Total Damage . | . . . . . . Kills . | . . . . . . Allies Corrupted . | . . . . . . Allies Melted . | . . . . . . Intel | -11 -10 -10 -10 -8 -8 ------- Run | Yrd Mat Min Sub Mat Gar Robot Analysis Total . | . . . . . . Derelict Logs Recovered 1 | . . 1 . . . Drone Launches . | . . . . . . Drone Recoveries . | . . . . . . Exploration | -11 -10 -10 -10 -8 -8 ------------- Run | Yrd Mat Min Sub Mat Gar Turns Passed 3547 | 379 1057 433 646 636 396 Spaces Moved 1389 | 244 278 191 278 244 154 Core 133 | 128 . . . . 5 Treads 15 | . . . . . 15 Legs 1241 | 116 278 191 278 244 134 Wheels . | . . . . . . Hover . | . . . . . . Flight . | . . . . . . Fastest Speed 50 | 50 120 190 120 120 100 Average Speed 181 | 87 339 190 176 120 137 Slowest Speed 750 | 120 750 190 330 120 350 Overloaded Moves . | . . . . . . Propulsion Burnouts . | . . . . . . Robots Hopped . | . . . . . . Cave-ins Triggered . | . . . . . . Exploration Rate (%) 23 | 10 32 44 17 18 21 Regions Visited 5 Branch Regions 2 Pre-discovered Areas 1 | . . 1 . . . Known Exits Taken 1 | . . . . 1 . Unknown Exits Taken 4 | 1 1 1 1 . . Scrap Searched 1 | . . . 1 . . Spaces Dug 48 | 4 . 44 . . . Terrain Destroyed 62 | 4 5 44 2 1 6 Melee . | . . . . . . Projectile 7 | 4 . . 2 1 . AOE 55 | . 5 44 . . 6 Terrain Rammed . | . . . . . . Walls Destroyed . | . . . . . . Machines Disabled . | . . . . . . Actions | -11 -10 -10 -10 -8 -8 --------- Run | Yrd Mat Min Sub Mat Gar Total 2124 | 348 347 237 426 506 260 Wait 382 | 66 2 28 107 160 19 Move 1384 | 243 277 190 277 243 154 Hop . | . . . . . . Pick Up 71 | 8 27 . 9 18 9 Fast Attach 12 | 4 1 1 6 . . Attach 34 | 3 2 . . 13 16 Detach 1 | . . . . . 1 Swap 29 | 2 7 2 2 12 4 Drop 37 | 1 8 1 18 8 1 Fire 135 | 21 23 15 7 47 22 Melee 38 | . . . . 4 34 Ram . | . . . . . . Kick 1 | . . . . 1 . Crush . | . . . . . . Escape Stasis . | . . . . . . Rewire . | . . . . . . Trap . | . . . . . . Miscellaneous . | . . . . . . Route ------- -11/Scrapyard -10/Materials -10/Mines (discovered 2 exits: [*Mat] / [*Sub]) -10/Subcaves -8/Materials -8/Garrison History --------- Turn | Location | Event 2 | -11/Scrapyard | Met Revision 17 103 | -11/Scrapyard | Discovered new exit (range 8) 380 | -11/Scrapyard | Entered Materials 381 | -10/Materials | Build established: Mutant 556 | -10/Materials | Core integrity fell below 50% 773 | -10/Materials | Discovered new exit (range 13) 1437 | -10/Materials | Entered Mines 1493 | -10/Mines | Discovered new exit (range 14) 1833 | -10/Mines | Discovered new exit (range 14) 1870 | -10/Mines | Entered Subcaves 2152 | -10/Subcaves | Shifting Twisted Machinery released Sub. Beam Cannon 2190 | -10/Subcaves | A swath of the cavern ceiling suddenly collapsed 2355 | -10/Subcaves | Ambushed by swarm of Subdwellers 2429 | -10/Subcaves | Lost 4 allies 2505 | -10/Subcaves | Discovered new exit (range 7) 2516 | -10/Subcaves | Entered Materials 2516 | -8/Materials | Evolved 4 slots: Propulsion x2, Utility x2 2597 | -8/Materials | Central database locked down 2698 | -8/Materials | Build established: Scavenger-Mutant 2853 | -8/Materials | Garrison activated, responded to threat 2914 | -8/Materials | Lost 3 parts (2n1w) 3148 | -8/Materials | Identified exit to Garrison 3152 | -8/Materials | Entered Garrison 3178 | -8/Garrison | Triggered checkpoint 3352 | -8/Garrison | Triggered checkpoint 3394 | -8/Garrison | Lost 3 parts (2n1u) 3424 | -8/Garrison | Triggered checkpoint 3473 | -8/Garrison | Triggered checkpoint 3498 | -8/Garrison | Core integrity fell below 50% 3539 | -8/Garrison | Core integrity fell below 20% 3548 | -8/Garrison | Destroyed by H-55 Commando with Gauss Rifle Last Messages --------------- Slug penetrates Wall. Critical hit (Burn: +37). Slug penetrates Wall. System corrupted: Arm. Treads rejected. Sub. Beam Cannon destroyed. Lgt. Treads destroyed. Lgt. Ion Engine destroyed. Slug penetrates Wall. Hardlight Generator destroyed. Core Shielding destroyed. Penetrated by Slug. P-60 Hacker destroyed. Lgt. Assault Rifle destroyed. Slug penetrates Wall. System corrupted: Heat flow error (+241). Acquired Relay Coupler [Hunter]. Penetrated by Slug. Lgt. Assault Rifle destroyed. Critical hit (Burn: +37). Penetrated by Slug. Map ----- +----------------------------------------------------+ | ????????????????????????????????? #?????????#????? | | ????????????????????????????????? #??????? #????? | | ????????????????????????????#####"##""""## ##???? | | ????????????????????????????? ????? | | ????????????????????????????? ????? | | ?????????????????????????????? ? ???? | | ??????????????????????????????# # #? ^ #???? | | ????????????????????????????### # ## ##??? | | ????????????????????????????# ??? | | ????????????????????????????# #?? | | ????????????????????????????# #?? | | ????????????????????????????# #?? | | ????????????????????????????###= ## ## #???? | | ?????????????????????######### = ^ ## ##### | | ?????????????????????# % %! | | ?????????????????????# + | | ?????????????????????# ####### #???? | | ?????????????????????# #?????# ## ######???? | | ?????????????????????# #?????# #? #????????? | | ?????????????????????# #?????# #??####????????? | | ?????????????????????# ?????# #??????????????? | | ?????????????????????# #?????# #??????????????? | | ?????????????????????# #?????# #??????????????? | | ?????????????????????# %#?????# #??????????????? | | ######################++####### #??????????????? | | =*h@ = %! #??????????????? | | * g! #??????????????? | | = g% #??????????????? | | #################### #######;###??????????????? | | #??????????????????# ###???# #????????????????? | | ###??????????????????# =*#???# #????????????????? | | ?????????????????????# =%#??? #????????????????? | | ?????????????????????# ==#???###????????????????? | | ?????????????????????# ###??????????????????????? | | ?????????????????????# #????????????????????????? | | ?????????????????????# #????????????????????????? | | ?????????????????????# #????????????????????????? | | ?????????????????????# #????????????????????????? | | ?????????????????????# ^ ????????????????????????? | | ?????????????????????# ????????????????????????? | | ?????????????????????# "???????????????????????? | | ?????????????????????# #"???????????????????????? | | ?????????????????????# ###??????????????????????? | | ?????????????????????####????????????????????????? | | ?????????????????????????????????????????????????? | | ?????????????????????????????????????????????????? | | ?????????????????????????????????????????????????? | | ?????????????????????????????????????????????????? | | ?????????????????????????????????????????????????? | | ?????????????????????????????????????????????????? | +----------------------------------------------------+ Best States ------------- Heat Dissipation 59 Energy Generation 15 Energy Capacity 265 Matter Stores 300 Matter Capacity 300 Sight Range 21 Terrain Scan Density 10 Additional Mass Support 9 Armor Coverage 225 Core Shielding 20 Evasion (%) 55 Targeting Accuracy 5 Recoil Reduction 2 Item Schematics ----------------- None Robot Schematics ------------------ None Fabricated ------------ Nothing Alien Tech Used ----------------- None Achievements -------------- It's Just You Let's See Who's Tougher Troublemaker Challenges ------------ None Game ------ Seed GammaSurveybotExtractor Manual? 0 Play Time 00:51:07 Cumulative 3.0 hours Start 2024.04.08 @ 19:08:04 End 2024.04.08 @ 21:09:03 Sessions 5 Manual Loads 0 Difficulty Rogue Special Mode None Game No. 3 Rogue 3 Adventurer 0 Explorer 0 Win Type - Total 0 Types 0/0/0/0/0/0/0/0/0 Lore% 1 Gallery% 7 Achievement% 3 Wizard Run 0 Options --------- Layout 1 ASCII 0 Keyboard 0 Movement Arrows Keybinds 0 Fullscreen 0 Font 40/Terminus Map View 59x39 Zoom Use 17% Tactical HUD 0 Map Filters NONE Filters NONE Steam 1 RUN: c0050c8c-e3e1-4081-95a0-dfd938bdc6ab